Workbook

Sheet Лист2
B3: стоимость | E3: Тип коробки | F3: Цвет | H3: Тип наличников | J3: Фурнитура | L3: Монтаж / Доставка | M3: Итого
B4: =INDIRECT("полотно!B" &#REF!+ 11) ->  | E4: 6 | F4: 4 | G4: =INDEX(Лист4!$B$2:$E$7,E4,F4)*IF(AND(ISNUMBER(FIND("V",INDEX(Лист4!$A$2:$A$7,E4))),#REF!*2+#REF!>5800),1.5,1) ->  | H4: 1 | I4: =INDIRECT("'Деревянные коробки'!B" & H4+40) ->  | J4: 1 | K4: =CHOOSE(J4,Лист4!B19,Лист4!B20,Лист4!B21,Лист4!B22,Лист4!B23,Лист4!B24,Лист4!B25,Лист4!B26)*IF(AND(ISNUMBER(FIND("Titan",INDEX(Лист4!$A$19:$A$26,J4))),#REF!>1100),2,1) ->  | L4: =((CHOOSE(#REF!,Лист4!#REF!,Лист4!#REF!,Лист4!#REF!,Лист4!#REF!,Лист4!#REF!)+IF(AND(ISNUMBER(FIND("Телескопическая",INDEX(Лист4!$A$78:$A$83,E4))),#REF!>600),400,0))*IF(#REF!>1100,2,1)+CHOOSE(#REF!,Лист4!#REF!,Лист4!#REF!,Лист4!#REF!,Лист4!#REF!,Лист4!#REF!)) ->  | M4: =#REF!+B4+G4+I4+K4+L4 -> 
O11: ="Дверь глухая распашная. Полотно: "&CHOOSE(#REF!,#REF!,#REF!,#REF!,#REF!,#REF!)&" "&CHOOSE(#REF!,#REF!,#REF!,#REF!,#REF!,#REF!)&" Коробка: "&CHOOSE(E4,#REF!,#REF!,#REF!,#REF!,#REF!,)&" "&CHOOSE(H4,#REF!,#REF!,#REF!,)&". Цвет: "&CHOOSE(F4,#REF!,#REF!,#REF!,#REF!)&" Фрамуга: нет Размеры: "&#REF!&"х"&#REF!&"мм" -> 

Sheet Деревянные коробки
A1: коробка деревянная стандартная
A2: цена за п/м руб | B2: стоимость
A3: 452 | B3: =(Лист2!#REF!*2+Лист2!#REF!)*'Деревянные коробки'!A3/1000 -> 
A4: 430 | B4: =(Лист2!#REF!*2+Лист2!#REF!)*'Деревянные коробки'!A4/1000 -> 
A5: 430 | B5: =(Лист2!#REF!*2+Лист2!#REF!)*'Деревянные коробки'!A5/1000 -> 
A6: 430 | B6: =(Лист2!#REF!*2+Лист2!#REF!)*'Деревянные коробки'!A6/1000 -> 
A7: 430 | B7: =(Лист2!#REF!*2+Лист2!#REF!)*'Деревянные коробки'!A7/1000 -> 
A9: коробка деревянная усиленная
A10: 600 | B10: =(Лист2!#REF!*2+Лист2!#REF!)*'Деревянные коробки'!A10/1000 -> 
A11: 570 | B11: =(Лист2!#REF!*2+Лист2!#REF!)*'Деревянные коробки'!A11/1000 -> 
A12: 570 | B12: =(Лист2!#REF!*2+Лист2!#REF!)*'Деревянные коробки'!A12/1000 -> 
A13: 570 | B13: =(Лист2!#REF!*2+Лист2!#REF!)*'Деревянные коробки'!A13/1000 -> 
A14: 570 | B14: =(Лист2!#REF!*2+Лист2!#REF!)*'Деревянные коробки'!A14/1000 -> 
A16: наличники
A17: наименование | B17: цена за п/м руб | C17: стоимость
A18: плоский | B18: 336 | C18: =(Лист2!#REF!*2+Лист2!#REF!)*'Деревянные коробки'!B18/1000 -> 
A19: плоский | B19: 336 | C19: =(Лист2!#REF!*2+Лист2!#REF!)*'Деревянные коробки'!B19/1000 -> 
A20: плоский | B20: 336 | C20: =(Лист2!#REF!*2+Лист2!#REF!)*'Деревянные коробки'!B20/1000 -> 
A21: плоский | B21: 336 | C21: =(Лист2!#REF!*2+Лист2!#REF!)*'Деревянные коробки'!B21/1000 -> 
A22: плоский | B22: 336 | C22: =(Лист2!#REF!*2+Лист2!#REF!)*'Деревянные коробки'!B22/1000 -> 
A23: телескопический | B23: 400 | C23: =(Лист2!#REF!*2+Лист2!#REF!)*'Деревянные коробки'!B23/1000 -> 
A24: телескопический | B24: 400 | C24: =(Лист2!#REF!*2+Лист2!#REF!)*'Деревянные коробки'!B24/1000 -> 
A25: телескопический | B25: 400 | C25: =(Лист2!#REF!*2+Лист2!#REF!)*'Деревянные коробки'!B25/1000 -> 
A26: телескопический | B26: 400 | C26: =(Лист2!#REF!*2+Лист2!#REF!)*'Деревянные коробки'!B26/1000 -> 
A27: телескопический | B27: 400 | C27: =(Лист2!#REF!*2+Лист2!#REF!)*'Деревянные коробки'!B27/1000 -> 
A29: доборы
B30: стоимость | C30: цена
A31: 1 | B31: =(Лист2!#REF!*2+Лист2!#REF!)/1000*(Лист2!#REF!-100)/1000*C31+(Лист2!#REF!*2+Лист2!#REF!)/1000*B37 ->  | C31: 2890
A32: 2 | B32: =(Лист2!#REF!*2+Лист2!#REF!)/1000*(Лист2!#REF!-100)/1000*C32+(Лист2!#REF!*2+Лист2!#REF!)/1000*B37 ->  | C32: 2890
A33: 3 | B33: =(Лист2!#REF!*2+Лист2!#REF!)/1000*(Лист2!#REF!-90)/1000*C33+(Лист2!#REF!*2+Лист2!#REF!)/1000*B37 ->  | C33: 2890
A34: 4 | B34: =(Лист2!#REF!*2+Лист2!#REF!)/1000*(Лист2!#REF!-90)/1000*C34+(Лист2!#REF!*2+Лист2!#REF!)/1000*B37 ->  | C34: 2890
A35: 5 | B35: =(Лист2!#REF!*2+Лист2!#REF!)/1000*(Лист2!#REF!-90)/1000*C35+(Лист2!#REF!*2+Лист2!#REF!)/1000*B37 ->  | C35: 2890
A37: Фрезеровка | B37: 90
B39: Сотовое полотно | C39: трубчатое полотно | D39: полнотелое полотно | E39: (ПП IE 30) | F39: (ПП IE 60)
B40: цена руб/м2 | C40: цена руб/м2 | D40: цена руб/м2 | E40: цена руб/м2 | F40: цена руб/м2
A41: плоский | B41: =C18 ->  | C41: =C19 ->  | D41: =C20 ->  | E41: =C21 ->  | F41: =C22 -> 
A42: телескопический | B42: =C23 ->  | C42: =C24 ->  | D42: =C25 ->  | E42: =C26 ->  | F42: =C27 -> 
A44: -

Sheet Лист4
B1: анодировка | C1: 9006/9016 | D1: нестандарт | E1: - | I1: анодировка | J1: 9006/9016 | K1: нестандарт | L1: -
A2: Торцевая V | B2: =CEILING((235.21*6.2+1000+200),10) -> 2660 | C2: =CEILING(((194.31)*6.2+1000+200),10) -> 2410 | D2: =CEILING(((253.71)*6.2+1000+200),10) -> 2780 | F2: Толщина стены | H2: Торцевая V | I2: =CEILING((235.21*6.2+1000+200),10) -> 2660 | J2: =CEILING(((194.31)*6.2+1000+200),10) -> 2410 | K2: =CEILING(((253.71)*6.2+1000+200),10) -> 2780 | M2: Толщина стены
A3: Угловая V | B3: =CEILING(((235.21+42.57)*6.2+1000+500),10) -> 3230 | C3: =CEILING(((194.31+35.76)*6.2+1000+500),10) -> 2930 | D3: =CEILING(((253.71+48.1)*6.2+1000+500),10) -> 3380 | F3: =Лист2!#REF! ->  | H3: Угловая V | I3: =CEILING(((235.21+42.57)*6.2+1000+500),10) -> 3230 | J3: =CEILING(((194.31+35.76)*6.2+1000+500),10) -> 2930 | K3: =CEILING(((253.71+48.1)*6.2+1000+500),10) -> 3380 | M3: =Лист2!#REF! -> 
A4: Телескопическая V | B4: =CEILING(((235.21+42.57+69.02+93.53)*6.2+1000+700+((F3-75)/1000*6.2*300+30*6.2)),10) ->  | C4: =CEILING(((194.31+35.76+57.72+78.06)*6.2+1000+700+((F3-75)/1000*6.2*300+30*6.2)),10) ->  | D4: =CEILING(((253.71+27.28+135.27+57.8)*6.2+1000+700+((F3-75)/1000*6.2*300+30*6.2)),10) ->  | H4: Телескопическая V | I4: =CEILING(((235.21+42.57+69.02+93.53)*6.2+1000+700+((M3-75)/1000*6.2*300+30*6.2)),10) ->  | J4: =CEILING(((194.31+35.76+57.72+78.06)*6.2+1000+700+((M3-75)/1000*6.2*300+30*6.2)),10) ->  | K4: =CEILING(((253.71+27.28+135.27+57.8)*6.2+1000+700+((M3-75)/1000*6.2*300+30*6.2)),10) -> 
A5: Фристайл | B5: =#REF! ->  | C5: =#REF! ->  | D5: =#REF! ->  | H5: Обжимная V | I5: =CEILING(((33.76+248.9+53.58/3.9)*6.2+1000+500),10) -> 3340 | J5: =CEILING(((27.3+208.75+63.58/3.9)*6.2+1000+500),10) -> 3070 | K5: =CEILING(((20.9+253.8+170.58/3.9)*6.2+1000+500),10) -> 3480
A6: Деревянная Стандарт | E6: ='Деревянные коробки'!B3+'Деревянные коробки'!B31 ->  | H6: Фитинги | L6: =G37 -> 2433.5
A7: Деревянная Усиленная | E7: ='Деревянные коробки'!B10+'Деревянные коробки'!B31 ->  | H7: Фитинги угл | L7: =G38 -> 3372
A12: анодировка
A13: 9006/9016
A14: нестандарт
A15: -
A18: Фурнитура
A19: Hafele | B19: 1500
A20: Titan 800 | B20: 2190
A21: Titan 1000 | B21: 2290
A22: Titan 1200 | B22: 2380
A23: Titan 1500 | B23: 2430
A24: Titan 1800 | B24: 2530
A25: Titan 2000 | B25: 3660
A26: Другая
A29: Стекло
A30: 10мм | B30: 1600
A31: 12мм | B31: 2620 | I31: Ручки | J31: Цена
I32: T-633 (800 мм) | J32: 1190 | L32: Замки | M32: Цена
I33: T-633 (1000 мм) | J33: 1290 | L33: T-150R* | M33: 609
I34: T-633 (1200 мм) | J34: 1380 | L34: T-034* | M34: 840
I35: T-633 (1500 мм) | J35: 1430 | L35: T-034(+K) | M35: 1270
A36: Фитинг верхний Т-110 | B36: 308 | I36: T-633 (1800 мм) | J36: 1530 | L36: -
A37: Фитинг нижний Т-120 | B37: 308 | F37: фитинги | G37: =B36+B37+B39+B42+B44 -> 2433.5 | I37: T-633 (2000 мм) | J37: 2660
A38: Фитинг угловой Т-140К без оси | B38: 480 | F38: фитинги угловые | G38: =B36+B37+B38+B42+B44+B45 -> 3372 | I38: Dorma Studio R | J38: =B49 -> 3890
A39: Верхняя ось T-133 SSS | B39: 157.5 | F39: Петли Glassmarte | G39: 2200 | I39: Dorma SR+ответка | J39: =B50 -> 6700
A40: Замок угловой комплект Т-150 + отв.часть с подпруж.крышкой T-100-6 | B40: 609
A41: Нижний шарнир T-110-12 SSS | B41: 357
A42: Доводчик T-84D | B42: 1610
A43: Ответная часть в пол для замка с круглым ригелем с подпружиненной крышкой T-100-6 | B43: 77
A44: Торцевая заглушка | B44: 50
A45: Фитинг угловой Т-140 с осью | B45: 616
A47: Ручка комплект T-633 38x1000 SSS | B47: 1200
A49: Dorma Studio Rondo | B49: 3890
A50: Dorma Studio Rondo c ответкой | B50: 6700
A51: Петли Glassmarte | B51: 2200
A55: Пленка
A56: Пленка матовая сплошная | B56: 400
A57: Пленка матовая полосами | B57: 560
A58: Пленка зеркальная | B58: 800
A59: Пленка плотерная резка | B59: 1200
A60: нет | B60: 0
A77: Монтаж Стеклянных дверей
A78: Торцевая V | B78: 1200
A79: Угловая V | B79: 1200
A80: Телескопическая V | B80: 1600
A81: Обжимная V | B81: 1200
A82: Фитинги | B82: 1400
A83: Фитинги угл | B83: 1400
